bitfinex/quotes_BTCUSD_20220105
["timestamp","ask_amount","ask_price","bid_price","bid_amount"]
[1641404963972,0.043,46190.0,46189.0,1.16377601]
[1641404964374,0.043,46190.0,46189.0,0.427638]
[1641404964579,0.043,46190.0,46189.0,0.07]
[1641404965272,0.043,46190.0,46188.0,0.73775046]
[1641404965472,0.097127,46190.0,46188.0,0.73775046]
[1641404966094,0.097127,46190.0,46188.0,0.80975046]
[1641404966423,0.097127,46190.0,46188.0,0.07361927]
[1641404966823,0.147127,46190.0,46188.0,0.07361927]
[1641404967230,0.201258,46190.0,46189.0,0.61345329]
[1641404967426,0.147127,46190.0,46189.0,0.61345329]
[1641404967827,0.143,46190.0,46189.0,0.61345329]
[1641404970767,0.093,46190.0,46188.0,0.73775046]
[1641404970967,0.147129,46190.0,46188.0,0.73775046]
[1641404971165,0.147129,46190.0,46189.0,0.61345464]
[1641404971666,1.324129,46190.0,46189.0,0.61345464]
[1641404971868,0.73538339,46190.0,46189.0,0.61345464]
[1641404972066,1.27795052,46190.0,46189.0,0.26885464]
[1641404972266,1.63558852,46190.0,46189.0,0.26885464]
[1641404972472,1.63558852,46190.0,46188.0,0.00161927]
[1641404972473,1.25973452,46190.0,46188.0,0.00161927]
[1641404972668,0.54536,46189.0,46188.0,0.00161927]
[1641404972868,0.20972695,46181.0,46180.0,0.78613119]
[1641404973069,0.46573625,46181.0,46180.0,0.05]
[1641404973566,0.56573625,46181.0,46180.0,0.05]
[1641404973767,0.61988125,46181.0,46180.0,0.05]
[1641404974026,1.09581788,46181.0,46180.0,0.05]
[1641404974225,1.45345588,46181.0,46180.0,0.05]
[1641404975227,1.44745588,46181.0,46180.0,0.05]
[1641404976029,1.46245588,46181.0,46180.0,0.05]
[1641404976231,1.17420074,46181.0,46180.0,0.05]
[1641404976434,1.71120074,46181.0,46180.0,0.05]
[1641404976631,1.91248437,46181.0,46180.0,0.05]
[1641404976831,1.17415951,46180.0,46178.0,0.75113119]
[1641404977032,0.58836,46179.0,46178.0,0.015]
[1641404977232,0.59373651,46179.0,46178.0,0.0011787]
[1641404977536,0.108325,46178.0,46175.0,0.012561]
[1641404977771,1.694638,46176.0,46175.0,0.012561]
[1641404977972,1.637638,46176.0,46175.0,0.012561]
[1641404978170,1.637638,46176.0,46166.0,0.73635119]
[1641404978171,1.737638,46176.0,46166.0,0.73635119]
[1641404978371,0.537,46170.0,46166.0,0.73635119]
[1641404978571,0.043,46169.0,46166.0,0.73635119]
[1641404978775,0.151328,46169.0,46166.0,0.73635119]
[1641404978971,0.52511989,46168.0,46166.0,0.73635119]
[1641404979172,0.66785936,46168.0,46166.0,0.73635119]
[1641404979574,0.39184887,46168.0,46166.0,0.00022]
[1641404979772,0.80365087,46168.0,46166.0,0.00022]
[1641404979973,1.09769254,46168.0,46166.0,0.00022]
[1641404981282,0.42202758,46167.0,46161.0,0.00125476]
[1641404981529,0.42202758,46167.0,46157.0,0.41759364]
[1641404981530,0.16248884,46165.0,46157.0,0.41759364]
[1641404981731,0.054163,46161.0,46157.0,0.41759364]
[1641404981930,0.043,46160.0,46157.0,0.41759364]
[1641404982229,0.043,46160.0,46157.0,0.41365809]
[1641404982431,0.097163,46160.0,46157.0,0.41365809]
[1641404983032,0.043,46160.0,46157.0,0.41365809]
[1641404984030,0.043,46160.0,46157.0,0.44965809]
[1641404986074,0.043,46160.0,46157.0,0.48165809]
[1641404987276,0.043,46160.0,46157.0,0.41365809]
[1641404988080,9.043,46160.0,46157.0,0.43665809]
[1641404988676,9.093,46160.0,46157.0,0.43665809]
[1641404989319,9.093,46160.0,46157.0,0.41365809]
[1641404989520,9.093,46160.0,46157.0,0.46780909]
[1641404989521,9.0,46160.0,46157.0,0.46780909]
[1641404989921,9.0,46160.0,46158.0,0.046958]
[1641404990920,9.0,46160.0,46158.0,0.101101]
[1641404992121,9.0,46160.0,46158.0,0.199044]
[1641404992122,7.2803637,46160.0,46158.0,0.199044]
[1641404993376,7.2803637,46160.0,46158.0,0.154044]
[1641404993571,7.2803637,46160.0,46158.0,0.101101]
[1641404993971,7.2803637,46160.0,46158.0,0.157101]
[1641404995471,7.2803637,46160.0,46158.0,0.101101]
[1641404996074,7.2803637,46160.0,46158.0,0.15977697]
[1641404997428,7.2803637,46160.0,46158.0,0.09677697]
[1641404998024,7.2803637,46160.0,46158.0,0.14577697]
[1641404998427,7.2803637,46160.0,46159.0,0.61188584]
[1641405000027,7.2803637,46160.0,46159.0,0.72088584]
[1641405000674,7.2803637,46160.0,46159.0,0.1077]
[1641405001876,7.2803637,46160.0,46158.0,0.04263397]
[1641405002075,7.2803637,46160.0,46159.0,0.097]
[1641405002575,7.51044672,46160.0,46159.0,0.097]
[1641405003275,7.51044672,46160.0,46158.0,0.04263397]
[1641405003574,7.51044672,46160.0,46158.0,0.02580279]
[1641405003575,0.37269691,46159.0,46158.0,0.02580279]
[1641405004029,0.37269691,46159.0,46158.0,0.10780279]
[1641405004226,0.37269691,46159.0,46158.0,0.082]
[1641405004426,0.64904379,46159.0,46158.0,0.082]
[1641405004630,0.84735531,46159.0,46158.0,0.082]
[1641405004825,1.20499331,46159.0,46158.0,0.082]
[1641405005228,1.37792672,46159.0,46158.0,0.082]
[1641405005428,1.43209072,46159.0,46158.0,0.082]
[1641405006026,1.43209072,46159.0,46158.0,0.134]
[1641405006828,1.43007404,46159.0,46158.0,0.134]
[1641405007429,2.80707404,46159.0,46156.0,0.00044]
[1641405007680,1.98536,46157.0,46156.0,0.00044]
[1641405007981,1.98536,46157.0,46153.0,0.59198584]
[1641405007982,0.05418,46156.0,46153.0,0.59198584]
[1641405008179,0.537,46154.0,46151.0,0.00433]
[1641405008379,0.33148495,46153.0,46151.0,0.00433]
[1641405008578,0.43148495,46153.0,46151.0,0.00433]
[1641405008780,0.43148495,46153.0,46151.0,0.01693914]
[1641405009778,0.22362442,46152.0,46151.0,0.01427914]
[1641405010078,0.22362442,46152.0,46151.0,0.00725461]
[1641405010079,0.97621491,46152.0,46151.0,0.00725461]
[1641405010278,0.97621491,46152.0,46149.0,0.00044]
[1641405010480,0.2949907,46151.0,46149.0,0.00044]
[1641405010679,0.3379907,46151.0,46149.0,0.00044]
[1641405011078,0.4379907,46151.0,46149.0,0.00044]
[1641405011526,0.48216768,46151.0,46149.0,0.00044]
[1641405012125,0.49116768,46151.0,46150.0,0.00733]
[1641405012926,0.16036,46151.0,46150.0,0.00733]
[1641405013124,0.06036,46151.0,46150.0,0.00733]
[1641405013326,0.05136,46151.0,46150.0,0.00033]
[1641405014126,0.06836,46151.0,46150.0,0.00033]
[1641405015406,0.043,46151.0,46150.0,0.00033]
[1641405016201,0.045,46151.0,46150.0,0.02133]
[1641405017309,0.002,46151.0,46150.0,0.00033]
[1641405017504,0.37269691,46159.0,46150.0,0.00033]
[1641405018204,0.37269691,46159.0,46150.0,0.04033]
[1641405018405,0.05416486,46157.0,46150.0,0.04033]
[1641405018604,0.05416486,46157.0,46153.0,0.61366488]
[1641405018803,0.10832986,46157.0,46153.0,0.61366488]
[1641405019630,0.10332986,46157.0,46153.0,0.61366488]
[1641405019929,0.05416684,46155.0,46153.0,0.61366488]
[1641405020126,0.357638,46154.0,46153.0,0.62366488]
[1641405020327,0.411812,46154.0,46153.0,0.62366488]
[1641405020529,0.511812,46154.0,46153.0,0.62366488]
[1641405020728,0.511812,46154.0,46153.0,0.01]
[1641405020729,0.76314679,46154.0,46153.0,0.01]
[1641405021128,0.511812,46154.0,46153.0,0.01]
[1641405021326,0.511812,46154.0,46152.0,0.00139235]
[1641405022127,0.511812,46154.0,46152.0,0.01639235]
[1641405022128,0.783,46153.0,46152.0,0.01639235]
[1641405022330,0.79136,46153.0,46152.0,0.01639235]
[1641405022527,0.89136,46153.0,46152.0,0.01639235]
[1641405023374,0.89136,46153.0,46152.0,0.00139235]
[1641405023780,0.15136,46153.0,46152.0,0.00139235]
[1641405024178,0.06436,46153.0,46152.0,0.00139235]
[1641405025378,0.05136,46153.0,46152.0,0.00139235]
[1641405026180,0.06336,46153.0,46152.0,0.00139235]
[1641405026632,0.26935606,46153.0,46152.0,0.00139235]
[1641405027926,0.25735606,46153.0,46152.0,0.00139235]
[1641405028226,0.26835606,46153.0,46152.0,0.00139235]
[1641405029427,0.05136,46153.0,46152.0,0.00139235]
[1641405030174,0.06436,46153.0,46152.0,0.00139235]
[1641405031776,0.06436,46153.0,46150.0,0.00033]
[1641405031975,1.217638,46151.0,46150.0,0.00033]
[1641405032174,0.500638,46151.0,46150.0,0.00033]
[1641405032977,0.500638,46151.0,46150.0,0.00022]
[1641405034223,0.512638,46151.0,46150.0,0.00022]
[1641405035423,0.500638,46151.0,46150.0,0.00022]
[1641405036026,0.91,46147.0,46146.0,0.01011]
[1641405036228,0.91,46147.0,46139.0,0.00044]
[1641405036229,0.00836,46145.0,46139.0,0.00044]
[1641405036425,0.54536,46143.0,46141.0,0.00411]
[1641405036624,0.54536,46143.0,46138.0,0.00011]
[1641405036625,0.37,46140.0,46138.0,0.00011]
[1641405036825,0.58836,46139.0,46138.0,0.00011]
[1641405037024,1.08349559,46139.0,46138.0,0.00011]
[1641405037225,0.357638,46138.0,46133.0,0.00033]
[1641405037523,0.054208,46136.0,46133.0,0.00033]
[1641405037782,0.05136,46135.0,46133.0,0.00033]
[1641405038185,0.68,46133.0,46130.0,0.00044]
[1641405038379,0.73136,46133.0,46132.0,0.00011]
[1641405038579,0.73136,46133.0,46130.0,0.00011]
[1641405038580,0.357638,46132.0,46130.0,0.00011]
[1641405038779,0.05136,46131.0,46130.0,0.00011]
[1641405038979,0.29821297,46131.0,46129.0,0.00022]
[1641405039181,0.357638,46130.0,46129.0,0.00022]
[1641405039380,0.400638,46130.0,46129.0,0.00022]
[1641405039582,0.500638,46130.0,46129.0,0.00022]
[1641405040182,0.511638,46130.0,46129.0,0.00022]
[1641405040382,0.82187146,46130.0,46129.0,0.00022]
[1641405040983,1.30187146,46130.0,46129.0,0.00011]
[1641405041186,0.054218,46129.0,46125.0,0.01292023]
[1641405041431,0.00836,46126.0,46125.0,0.01292023]
[1641405041633,0.33727237,46126.0,46124.0,0.00033]
[1641405041833,0.63073564,46125.0,46124.0,0.00033]
[1641405042032,0.82373564,46125.0,46124.0,0.00033]
[1641405042233,1.06717405,46125.0,46124.0,0.00033]
[1641405042834,1.10937846,46125.0,46124.0,0.00033]
[1641405043436,0.86594005,46125.0,46123.0,0.00022]
[1641405043633,0.76603289,46125.0,46123.0,0.00022]
[1641405043834,0.27658905,46124.0,46123.0,0.73661786]
[1641405044033,0.05136,46124.0,46123.0,0.73661786]
[1641405044241,0.043,46124.0,46123.0,0.73661786]
[1641405044435,0.043,46124.0,46123.0,0.00022]
[1641405044633,0.401039,46124.0,46123.0,0.00022]
[1641405045034,0.501039,46124.0,46123.0,0.00022]
[1641405045492,0.401039,46124.0,46123.0,0.00022]
[1641405045696,0.401039,46124.0,46123.0,0.61501667]
[1641405046098,0.043,46124.0,46123.0,0.00022]
[1641405046293,0.057,46124.0,46123.0,0.00022]
[1641405046892,0.107,46124.0,46123.0,0.00022]
[1641405047092,0.32343813,46124.0,46123.0,0.61501931]
[1641405047494,0.40943813,46124.0,46123.0,0.61501931]
[1641405048393,0.47241749,46124.0,46123.0,0.61501931]
[1641405049230,0.25597936,46124.0,46123.0,0.61501931]
[1641405049431,0.13997936,46124.0,46123.0,0.61501931]
[1641405050231,0.109,46124.0,46123.0,0.61501931]
[1641405050432,0.15006885,46124.0,46123.0,0.00022]
[1641405050631,0.50810785,46124.0,46123.0,0.00022]
[1641405051034,0.567039,46124.0,46123.0,0.00022]
[1641405051235,0.166,46124.0,46123.0,0.00022]
[1641405051440,0.108431,46126.0,46123.0,0.00022]
[1641405051634,0.054218,46126.0,46123.0,0.00022]
[1641405051835,0.054196,46129.0,46123.0,0.00148893]
[1641405052034,0.01259039,46130.0,46127.0,0.13939201]
[1641405052235,0.01259039,46130.0,46128.0,0.25898468]
[1641405052682,0.01259039,46130.0,46129.0,0.00127137]
[1641405053082,0.01259039,46130.0,46129.0,0.35931037]
[1641405054285,0.05419213,46134.0,46129.0,0.373039]
[1641405054486,0.108388,46134.0,46129.0,0.373039]
[1641405054885,0.00731403,46138.0,46129.0,0.373039]
[1641405054886,0.05,46133.0,46129.0,0.015]
[1641405055085,0.054196,46132.0,46129.0,0.015]
[1641405055285,0.054196,46131.0,46129.0,0.015]
[1641405055486,0.054197,46132.0,46127.0,0.13939201]
[1641405055687,0.05,46132.0,46124.0,0.00127482]
[1641405056285,0.26180358,46134.0,46124.0,0.02027482]
[1641405056529,0.054196,46130.0,46124.0,0.019]
[1641405056729,0.40545063,46127.0,46124.0,0.019]
[1641405057124,0.05,46126.0,46124.0,0.019]
[1641405057624,0.05,46126.0,46123.0,0.1179976]
[1641405058026,0.029201,46126.0,46123.0,0.1179976]
[1641405058225,0.029201,46126.0,46123.0,0.1389976]
[1641405059527,0.05419829,46128.0,46123.0,0.1179976]
[1641405060180,0.05919829,46128.0,46123.0,0.1389976]
[1641405060885,0.10840022,46126.0,46123.0,0.1389976]
[1641405061484,0.10840022,46126.0,46123.0,0.1179976]
[1641405061681,0.06030104,46129.0,46123.0,0.1179976]
[1641405061886,0.11450604,46129.0,46123.0,0.1179976]
[1641405062082,0.054203,46127.0,46123.0,0.1179976]
[1641405062283,0.10840022,46126.0,46123.0,0.1359976]
[1641405063589,0.10840022,46126.0,46124.0,6.076e-05]
[1641405064235,0.10813928,46126.0,46124.0,0.02106076]
[1641405065634,0.10813928,46126.0,46124.0,6.076e-05]
[1641405066036,0.05,46125.0,46124.0,6.076e-05]
[1641405066336,0.67699855,46125.0,46124.0,0.03506076]
[1641405066537,0.508039,46125.0,46124.0,0.03506076]
[1641405066737,0.77718896,46125.0,46124.0,0.03506076]
[1641405066941,0.508039,46125.0,46124.0,0.03506076]
[1641405067535,0.508039,46125.0,46124.0,6.076e-05]
[1641405068279,0.508039,46125.0,46124.0,0.00506076]
[1641405068280,0.519039,46125.0,46124.0,0.00506076]
[1641405069379,0.51846138,46125.0,46124.0,0.00506076]
[1641405069583,0.50746138,46125.0,46124.0,6.076e-05]
[1641405069985,0.14942238,46125.0,46124.0,6.076e-05]
[1641405070185,0.06542238,46125.0,46124.0,0.00506076]
[1641405071531,0.04942238,46125.0,46124.0,0.73645862]
[1641405071731,0.16234228,46126.0,46124.0,0.73645862]
[1641405071931,0.20534228,46126.0,46124.0,0.73645862]
[1641405072331,0.21434228,46126.0,46124.0,0.74245862]
[1641405072532,0.21434228,46126.0,46125.0,0.73639786]
[1641405072932,0.21434228,46126.0,46124.0,0.74245862]
[1641405073232,0.05,46125.0,46124.0,0.74245862]
[1641405073532,0.05,46125.0,46124.0,0.73645862]
[1641405074334,0.06,46125.0,46124.0,0.74445862]
[1641405075380,0.06,46125.0,46124.0,0.00806076]
[1641405075580,0.05,46125.0,46124.0,6.076e-05]
[1641405075780,1.533,46125.0,46124.0,6.076e-05]
[1641405075982,1.891039,46125.0,46124.0,6.076e-05]
[1641405076179,1.891039,46125.0,46124.0,0.73645862]
[1641405076180,1.991039,46125.0,46124.0,0.73645862]
[1641405076380,2.029039,46125.0,46124.0,6.076e-05]
[1641405076583,2.56733581,46125.0,46124.0,6.076e-05]
[1641405076783,1.44,46123.0,46122.0,0.00230245]
[1641405076981,1.44,46123.0,46122.0,0.00033]
[1641405076982,2.918039,46123.0,46122.0,0.00033]
[1641405077181,0.62,46121.0,46117.0,0.48921582]
[1641405077383,0.895039,46118.0,46117.0,0.48921582]
[1641405077580,0.895039,46118.0,46104.0,0.00044]
[1641405077581,1.038039,46118.0,46115.0,0.48954582]
[1641405077779,1.17925,46117.0,46116.0,0.01033]
[1641405077980,1.41225,46117.0,46116.0,0.01033]
[1641405078181,1.41225,46117.0,46113.0,0.10352017]
[1641405078182,1.44,46115.0,46113.0,0.10352017]
[1641405078485,1.44,46115.0,46108.0,0.00127668]
[1641405078486,0.358039,46112.0,46108.0,0.00127668]
[1641405078680,1.53225,46111.0,46108.0,0.00127668]
[1641405078941,0.00732,46107.0,46105.0,0.00022]
[1641405079139,0.992969,46106.0,46105.0,0.00022]
[1641405079438,0.505969,46106.0,46105.0,0.00022]
[1641405079638,0.605969,46106.0,46105.0,0.00022]
[1641405080240,0.054234,46102.0,46090.0,0.05]
[1641405080441,0.605969,46106.0,46091.0,0.63557218]
[1641405080442,0.05493,46100.0,46091.0,0.63557218]
[1641405080638,0.05493,46100.0,46097.0,0.41642925]
[1641405080840,0.05493,46100.0,46098.0,0.358039]
[1641405081244,0.05493,46100.0,46099.0,0.52352988]
[1641405081441,0.05493,46100.0,46099.0,0.51173888]
[1641405081640,0.05493,46100.0,46099.0,1.74170798]
[1641405083084,0.05493,46100.0,46099.0,1.74288871]
[1641405083485,0.0553835,46100.0,46099.0,1.74288871]
[1641405085091,0.0553835,46100.0,46099.0,1.58935883]
[1641405087132,0.0553835,46100.0,46099.0,2.44970109]
[1641405088334,0.0553835,46100.0,46099.0,1.58935883]
[1641405088737,0.0553835,46100.0,46099.0,1.23114983]
[1641405088738,0.0983835,46100.0,46099.0,1.23114983]
[1641405088936,0.1483835,46100.0,46099.0,1.23114983]
[1641405089537,0.0983835,46100.0,46099.0,1.23114983]
[1641405089737,0.0983835,46100.0,46099.0,0.00125735]
[1641405090185,0.0983835,46100.0,46099.0,0.35946635]
[1641405090490,0.0983835,46100.0,46099.0,0.51536651]
[1641405090888,0.0983835,46100.0,46099.0,0.15715751]
[1641405093287,0.0983835,46100.0,46099.0,0.15215751]
[1641405097981,0.1483835,46100.0,46089.0,0.00129677]
[1641405098186,0.05493,46098.0,46090.0,0.358209]
[1641405098583,0.05493,46098.0,46092.0,0.0009273]
[1641405098781,0.0004535,46097.0,46092.0,0.0009273]
[1641405099383,0.0004535,46097.0,46093.0,0.13337921]
[1641405100384,0.0004535,46097.0,46093.0,0.14737921]
[1641405100583,0.0004535,46097.0,46094.0,7.35e-05]
[1641405101731,0.0004535,46097.0,46094.0,0.32896904]
[1641405101931,0.0004535,46097.0,46095.0,0.358209]
[1641405102237,0.0004535,46097.0,46096.0,2.0734119]
[1641405102432,0.05,46100.0,46097.0,1.502209]
[1641405102633,0.05,46100.0,46099.0,0.35944199]
[1641405103033,0.05,46100.0,46099.0,1.95462893]
[1641405104035,0.05,46100.0,46099.0,1.92176587]
[1641405104435,0.63359832,46118.0,46099.0,1.92176587]
[1641405104436,0.5886,46129.0,46104.0,0.05421439]
[1641405104633,0.00122901,46123.0,46108.0,0.35939738]
[1641405104834,0.00125439,46125.0,46109.0,0.358159]
[1641405105033,0.00126326,46125.0,46109.0,0.358159]
[1641405105276,0.19293766,46121.0,46109.0,0.358159]
[1641405105481,0.61235353,46127.0,46109.0,1.69315961]
[1641405105877,0.25975142,46127.0,46109.0,4.2335182]
[1641405106083,0.25975142,46127.0,46109.0,4.13352083]
[1641405106276,0.17015044,46110.0,46109.0,4.08352083]
[1641405106478,0.17015044,46110.0,46109.0,4.10852083]
[1641405106877,0.00471732,46110.0,46109.0,4.10852083]
[1641405107677,0.00471732,46110.0,46109.0,4.08352083]
[1641405108477,0.00471732,46110.0,46109.0,4.11252083]
[1641405109733,0.00471732,46110.0,46109.0,4.08352083]
[1641405110534,0.00471732,46110.0,46109.0,4.11652083]
[1641405110935,0.00471732,46110.0,46109.0,4.11392412]
[1641405111136,0.00471732,46110.0,46109.0,2.98252742]
[1641405111341,0.00471732,46110.0,46109.0,0.5921662]
[1641405111536,0.00471732,46110.0,46109.0,0.86780002]
[1641405111736,0.00471732,46110.0,46109.0,0.83480002]
[1641405112137,0.00471732,46110.0,46109.0,2.48919002]
[1641405112336,0.00471732,46110.0,46109.0,3.13982002]
[1641405112538,0.00471732,46110.0,46109.0,1.3721862]
[1641405113183,0.00471732,46110.0,46109.0,1.9321862]
[1641405113387,0.00471732,46110.0,46109.0,2.03218357]
[1641405113583,0.00122545,46128.0,46117.0,0.10839721]
[1641405113785,0.00122545,46128.0,46121.0,0.054199]
[1641405114383,0.22775612,46129.0,46126.0,0.15219863]
[1641405114584,0.21840262,46128.0,46121.0,0.02]
[1641405116084,0.26840262,46128.0,46121.0,0.02]
[1641405116533,0.26840262,46128.0,46121.0,0.065]
[1641405117734,0.26840262,46128.0,46120.0,0.054199]
[1641405118433,0.26840262,46128.0,46120.0,0.076199]
[1641405118635,0.26840262,46128.0,46120.0,0.022]
[1641405119734,0.41363209,46128.0,46120.0,0.0542]
[1641405119934,0.6744518,46128.0,46114.0,0.10968542]
[1641405120382,0.52922233,46128.0,46114.0,0.10968542]
[1641405120582,0.66922233,46128.0,46114.0,0.10068542]
[1641405120785,0.24059565,46121.0,46114.0,0.15488842]
[1641405120982,0.29059565,46121.0,46115.0,0.358069]
[1641405121184,0.29059565,46121.0,46116.0,0.054204]
[1641405121385,0.29059565,46121.0,46115.0,0.12900732]
[1641405121588,0.26073134,46120.0,46114.0,0.046]
[1641405121785,0.26073134,46120.0,46109.0,0.6506911]
[1641405121786,0.31415886,46120.0,46109.0,0.6506911]
[1641405121985,0.00127811,46116.0,46109.0,0.6506911]
[1641405122185,0.043,46115.0,46109.0,0.6506911]
[1641405122386,0.043,46115.0,46109.0,0.65063]
[1641405122586,0.043,46115.0,46110.0,0.358069]
[1641405122787,0.043,46115.0,46109.0,0.8711608]
[1641405122986,0.043,46115.0,46109.0,0.70963]
[1641405122987,0.30513077,46115.0,46109.0,0.70963]
[1641405123386,0.043,46115.0,46109.0,0.70963]
[1641405123587,0.04288449,46115.0,46109.0,0.70963]
[1641405123786,0.04288449,46115.0,46109.0,0.65063]
[1641405124040,0.24608086,46111.0,46109.0,0.65063]
[1641405124246,0.043,46110.0,46109.0,0.65063]
[1641405124442,0.043,46110.0,46109.0,0.67063]
[1641405124639,0.401069,46110.0,46109.0,0.67063]
[1641405125241,0.043,46110.0,46109.0,0.67063]
[1641405125640,0.043,46110.0,46109.0,0.65063]
[1641405126439,0.043,46110.0,46109.0,0.69663]
[1641405127781,0.043,46110.0,46109.0,0.65063]
[1641405128380,0.043,46110.0,46109.0,0.64563]
[1641405128584,0.043,46110.0,46109.0,0.68163]
[1641405128781,0.043,46110.0,46109.0,0.68315339]
[1641405129179,0.043,46110.0,46109.0,0.67495141]
[1641405129781,0.043,46110.0,46109.0,0.63895141]
[1641405130585,0.21666994,46111.0,46109.0,0.68095141]
[1641405130782,0.25966994,46111.0,46109.0,0.68095141]
[1641405132231,0.043,46111.0,46109.0,0.63895141]
[1641405132629,0.043,46111.0,46109.0,0.67495141]
[1641405133231,0.28419507,46119.0,46110.0,6.024e-05]
[1641405133232,0.00123856,46119.0,46110.0,6.024e-05]
[1641405133432,0.00123856,46119.0,46113.0,0.1187958]
[1641405133632,0.25760193,46120.0,46113.0,0.1187958]
[1641405134233,0.20287138,46119.0,46113.0,0.11997611]
[1641405134435,0.25708338,46119.0,46113.0,0.13197611]
[1641405135033,0.30708338,46119.0,46113.0,0.13197611]
[1641405135280,0.38049665,46118.0,46113.0,0.01318031]
[1641405135681,0.25287138,46119.0,46113.0,0.00118031]
[1641405136279,0.25287138,46119.0,46113.0,0.12349911]
[1641405136479,0.05,46119.0,46113.0,0.13849911]
[1641405136681,0.05,46119.0,46113.0,0.19270711]
[1641405136880,0.40760193,46120.0,46113.0,0.19270711]
[1641405137481,0.15,46120.0,46113.0,0.19270711]
[1641405137680,0.15,46120.0,46113.0,0.17770711]
[1641405138281,0.05,46120.0,46113.0,0.17770711]
[1641405138482,0.27093527,46120.0,46113.0,0.19170711]
[1641405139731,0.27093527,46120.0,46113.0,0.17770711]
[1641405140531,0.27093527,46120.0,46113.0,0.19370711]
[1641405140730,0.05,46120.0,46113.0,0.19370711]
[1641405141130,0.4601093,46121.0,46113.0,0.19370711]
[1641405141731,0.4601093,46121.0,46113.0,0.17770711]
[1641405141932,0.4101093,46121.0,46113.0,0.17770711]
[1641405142532,0.4101093,46121.0,46113.0,0.19470711]
[1641405143681,0.4101093,46121.0,46113.0,0.17770711]
[1641405144083,0.3558983,46121.0,46113.0,0.17770711]
[1641405144481,0.3558983,46121.0,46113.0,0.19570711]
[1641405144987,0.19207143,46118.0,46113.0,0.14149911]
[1641405145183,0.26261466,46117.0,46113.0,0.14149911]
[1641405145384,0.26261466,46117.0,46113.0,0.01918031]
[1641405145583,0.00128843,46116.0,46113.0,0.01918031]
[1641405145783,0.00128843,46116.0,46113.0,0.00118031]
[1641405146653,0.00228843,46116.0,46113.0,0.04818031]
[1641405146855,0.05650643,46116.0,46113.0,0.04818031]
[1641405147053,0.05623643,46116.0,46113.0,0.04818031]
[1641405147254,0.043,46115.0,46113.0,0.04818031]
[1641405147456,0.26332445,46114.0,46113.0,0.04818031]
[1641405147658,0.093,46114.0,46113.0,0.04818031]
[1641405147856,0.093,46114.0,46113.0,0.00118031]
[1641405148357,0.043,46114.0,46113.0,0.00118031]
[1641405148557,0.405069,46114.0,46113.0,0.01718031]
[1641405148958,0.505069,46114.0,46113.0,0.01718031]
[1641405149759,0.501069,46114.0,46113.0,0.00118031]
[1641405150683,0.76218374,46114.0,46113.0,0.02718031]
[1641405151881,0.76218374,46114.0,46113.0,0.00118031]
[1641405151882,0.75818374,46114.0,46113.0,0.00118031]
[1641405152085,0.501069,46114.0,46113.0,0.00118031]
[1641405152482,0.557069,46114.0,46113.0,0.00118031]
[1641405153935,0.501069,46114.0,46113.0,0.00118031]
[1641405154535,0.178,46114.0,46113.0,0.00118031]
[1641405154935,0.078,46114.0,46113.0,0.00118031]
[1641405155738,0.043,46114.0,46113.0,0.00118031]
[1641405155939,0.093,46114.0,46113.0,0.00118031]
[1641405156137,0.043,46114.0,46113.0,0.00118031]
[1641405156637,0.049,46114.0,46113.0,0.36624931]
[1641405157888,0.043,46114.0,46113.0,0.35924931]
[1641405158684,0.045,46114.0,46113.0,0.37324931]
[1641405159886,0.045,46114.0,46113.0,0.35924931]
[1641405159887,0.043,46114.0,46113.0,0.35924931]
[1641405160087,0.04428801,46114.0,46113.0,0.00118031]
[1641405160688,0.04528801,46114.0,46113.0,0.04518031]
[1641405160888,0.044,46114.0,46113.0,0.04518031]
[1641405161533,0.402069,46114.0,46113.0,0.04518031]
[1641405161931,0.502069,46114.0,46113.0,0.04518031]
[1641405162333,0.144,46114.0,46113.0,0.04518031]
[1641405162633,0.507069,46114.0,46113.0,0.03618031]
[1641405163734,0.149,46114.0,46113.0,0.03618031]
[1641405164134,0.049,46114.0,46113.0,0.03618031]
[1641405164335,0.006,46114.0,46113.0,0.03618031]
[1641405164735,0.05421,46117.0,46113.0,0.37424931]
[1641405164935,0.05421,46117.0,46113.0,0.01618031]
[1641405165382,0.05421,46117.0,46113.0,0.12973274]
[1641405166584,0.05521,46117.0,46113.0,0.14473274]
[1641405167884,0.05421,46117.0,46113.0,0.12973274]
[1641405168687,0.05421,46117.0,46114.0,0.28383128]
[1641405168688,0.002,46117.0,46114.0,0.28383128]
[1641405168940,0.002,46117.0,46116.0,1.798069]
[1641405169338,0.002,46117.0,46116.0,0.358069]
[1641405169542,0.002,46117.0,46116.0,1.26984889]
[1641405169939,0.06679646,46119.0,46116.0,0.358069]
[1641405170339,0.054206,46119.0,46116.0,0.358069]
[1641405170739,0.054206,46119.0,46116.0,0.382069]
[1641405171541,0.054206,46119.0,46116.0,0.024]
[1641405171741,0.2970834,46119.0,46116.0,0.024]
[1641405171941,0.3512985,46119.0,46110.0,0.73691499]
[1641405172144,0.4513085,46119.0,46110.0,0.73691499]
[1641405172342,0.054216,46115.0,46109.0,0.73691499]
[1641405172541,0.17492356,46115.0,46110.0,0.358069]
[1641405172784,0.17492356,46115.0,46110.0,0.423069]
[1641405172986,0.39128938,46115.0,46110.0,0.423069]
[1641405173385,0.27058182,46115.0,46110.0,0.423069]
[1641405173885,0.27058182,46115.0,46110.0,0.358069]
[1641405174284,0.27058182,46115.0,46109.0,0.73691499]
[1641405174485,0.27058182,46115.0,46110.0,0.358069]
[1641405174486,0.05422191,46113.0,46110.0,0.358069]
[1641405174688,0.05422,46112.0,46110.0,0.387069]
[1641405175785,0.05422,46112.0,46111.0,0.39030281]
[1641405175987,0.05422,46112.0,46111.0,0.5043327]
[1641405176636,0.05422,46112.0,46111.0,0.6179279]
[1641405177934,0.05422,46112.0,46111.0,0.6009279]
[1641405178135,0.05422,46112.0,46111.0,0.358069]
[1641405178537,0.05422,46112.0,46111.0,0.60387977]
[1641405178740,0.05422,46112.0,46111.0,0.383069]
[1641405179538,0.05422,46112.0,46111.0,0.025]
[1641405179938,0.05422,46112.0,46108.0,0.054214]
[1641405180181,0.054214,46111.0,46109.0,0.16405609]
[1641405180484,0.108424,46115.0,46110.0,0.358069]